bitfinex/quotes_BTCUSD_20240605
["timestamp","ask_amount","ask_price","bid_price","bid_amount"]
[1717595790098,0.27818895,70750.0,70749.0,0.141343]
[1717595790410,0.28818895,70750.0,70749.0,0.141343]
[1717595790984,0.04398895,70750.0,70749.0,0.141343]
[1717595792594,0.05398895,70750.0,70749.0,0.141343]
[1717595793038,0.29258895,70750.0,70749.0,0.141343]
[1717595793514,0.29258895,70750.0,70736.0,0.14137]
[1717595793515,0.27500404,70737.0,70736.0,0.14137]
[1717595793714,0.27500404,70737.0,70729.0,0.283629]
[1717595793715,0.03640404,70731.0,70730.0,0.142242]
[1717595793845,0.04372644,70731.0,70730.0,0.142242]
[1717595794046,0.28232644,70731.0,70730.0,0.142242]
[1717595794468,0.42674537,70731.0,70730.0,0.00086]
[1717595794663,0.43674537,70731.0,70730.0,0.00086]
[1717595795503,0.43678537,70731.0,70730.0,0.00086]
[1717595797150,0.43678537,70731.0,70717.0,0.01701488]
[1717595797151,0.1,70712.0,70701.0,0.004]
[1717595797519,0.01657413,70706.0,70703.0,0.43336945]
[1717595797728,0.04444869,70711.0,70702.0,0.2488]
[1717595797917,0.03640404,70704.0,70703.0,0.295036]
[1717595798123,0.03640404,70704.0,70703.0,0.141436]
[1717595798353,0.03640404,70704.0,70701.0,0.004]
[1717595798536,0.0056621,70716.0,70701.0,0.004]
[1717595798537,0.04640404,70702.0,70701.0,0.004]
[1717595798738,0.43122297,70702.0,70701.0,0.004]
[1717595798941,0.42935197,70702.0,70701.0,0.004]
[1717595799139,0.04453304,70702.0,70701.0,0.004]
[1717595804245,0.04453304,70702.0,70701.0,2.3e-07]
[1717595804688,0.19895197,70702.0,70701.0,2.3e-07]
[1717595804889,0.57505207,70702.0,70701.0,2.3e-07]
[1717595805202,0.57505207,70702.0,70691.0,0.002]
[1717595805203,0.21290404,70692.0,70691.0,0.002]
[1717595805384,0.44042297,70692.0,70691.0,0.002]
[1717595805578,0.44845566,70692.0,70691.0,0.002]
[1717595806803,0.49649754,70692.0,70691.0,0.002]
[1717595807211,0.56983854,70692.0,70691.0,0.002]
[1717595807389,0.161464,70689.0,70688.0,0.00862]
[1717595807593,0.38032885,70689.0,70688.0,0.00862]
[1717595807761,0.38830228,70689.0,70688.0,0.00862]
[1717595808166,0.4616471,70689.0,70688.0,0.00862]
[1717595808381,0.8948471,70689.0,70688.0,0.00862]
[1717595808578,0.82150228,70689.0,70688.0,0.00862]
[1717595809092,0.87748882,70689.0,70688.0,0.00662]
[1717595809297,0.82150228,70689.0,70688.0,0.00662]
[1717595809678,0.5634604,70689.0,70688.0,0.00662]
[1717595809886,0.4219964,70689.0,70688.0,0.00662]
[1717595810064,0.4319964,70689.0,70688.0,0.00662]
[1717595811160,0.04437747,70689.0,70688.0,0.00662]
[1717595811635,0.04541747,70689.0,70688.0,0.00662]
[1717595811953,0.2054985,70689.0,70688.0,0.00662]
[1717595812117,0.3469625,70689.0,70688.0,0.00662]
[1717595812292,0.7802625,70689.0,70688.0,0.00662]
[1717595812494,0.85260694,70689.0,70688.0,0.00662]
[1717595812928,0.96686763,70689.0,70688.0,0.00662]
[1717595813458,0.01,70687.0,70681.0,0.01262]
[1717595813626,0.80798854,70687.0,70681.0,0.01262]
[1717595813835,0.80798854,70687.0,70678.0,0.00863]
[1717595813836,0.18788804,70679.0,70678.0,0.00863]
[1717595814068,0.47787965,70679.0,70678.0,0.00863]
[1717595814246,0.47787965,70679.0,70664.0,0.00862]
[1717595814247,0.04640404,70672.0,70664.0,0.00862]
[1717595814445,0.64152751,70672.0,70664.0,0.00862]
[1717595814654,0.64923206,70672.0,70664.0,0.00862]
[1717595815056,0.64359412,70672.0,70664.0,0.00862]
[1717595815257,0.03640404,70665.0,70664.0,0.00862]
[1717595815456,0.27186844,70665.0,70664.0,0.00862]
[1717595816688,0.27986844,70665.0,70664.0,0.00962]
[1717595816867,0.27990844,70665.0,70664.0,0.00962]
[1717595818291,0.42142044,70665.0,70664.0,0.00962]
[1717595818835,0.27990844,70665.0,70664.0,0.00962]
[1717595818978,0.28790844,70665.0,70664.0,0.01062]
[1717595819524,0.44610844,70665.0,70664.0,0.01062]
[1717595819985,0.43610844,70665.0,70664.0,0.01062]
[1717595820197,0.01657413,70661.0,70655.0,0.11229201]
[1717595820422,0.0733686,70660.0,70659.0,0.141522]
[1717595820631,0.08088666,70660.0,70659.0,0.390722]
[1717595820852,0.08088666,70660.0,70659.0,0.773771]
[1717595821066,0.00804,70665.0,70664.0,0.141514]
[1717595821271,0.00804,70665.0,70664.0,0.579643]
[1717595821495,0.00804,70665.0,70664.0,1.10709093]
[1717595821706,4e-05,70665.0,70664.0,1.3671168]
[1717595822133,4e-05,70665.0,70664.0,1.3901168]
[1717595822350,4e-05,70689.0,70664.0,1.3901168]
[1717595822351,0.07334256,70683.0,70682.0,0.381678]
[1717595822569,0.07334256,70683.0,70682.0,0.549778]
[1717595822785,0.07334256,70683.0,70682.0,0.932735]
[1717595822997,4e-05,70689.0,70682.0,0.932735]
[1717595822998,4e-05,70689.0,70688.0,0.141466]
[1717595823173,4e-05,70689.0,70688.0,0.309566]
[1717595824193,4e-05,70689.0,70688.0,0.1681]
[1717595824397,0.03644404,70689.0,70688.0,0.309566]
[1717595824593,0.03644404,70689.0,70688.0,0.141466]
[1717595824795,4e-05,70689.0,70688.0,0.141466]
[1717595825832,4e-05,70689.0,70688.0,0.56881793]
[1717595826029,4e-05,70689.0,70688.0,1.19525093]
[1717595827216,4e-05,70689.0,70688.0,1.3786768]
[1717595827433,4e-05,70689.0,70688.0,1.8846098]
[1717595828071,0.004,70699.0,70698.0,0.89061787]
[1717595828241,0.004,70699.0,70698.0,1.5705368]
[1717595828461,0.01038242,70699.0,70698.0,1.5705368]
[1717595828665,0.004,70699.0,70698.0,2.2215298]
[1717595828864,0.002,70709.0,70708.0,0.663079]
[1717595829065,0.00182979,70709.0,70708.0,0.931179]
[1717595829295,0.00182979,70709.0,70708.0,1.07559793]
[1717595830024,0.00182979,70709.0,70708.0,1.11739793]
[1717595830198,0.00182979,70709.0,70708.0,0.972979]
[1717595830199,0.03827383,70709.0,70708.0,0.972979]
[1717595831146,0.03827383,70709.0,70708.0,0.524279]
[1717595831147,0.03831383,70709.0,70708.0,0.524279]
[1717595831575,0.03831383,70709.0,70708.0,0.141426]
[1717595834025,0.00186979,70709.0,70708.0,0.141426]
[1717595834232,0.00186979,70709.0,70708.0,0.651779]
[1717595834431,0.0082522,70709.0,70708.0,0.961679]
[1717595834630,0.00186979,70709.0,70708.0,0.961679]
[1717595835035,0.00186979,70709.0,70708.0,1.10609793]
[1717595835238,0.00186979,70709.0,70708.0,1.38895093]
[1717595835428,0.00186979,70709.0,70708.0,1.5723368]
[1717595836033,0.00186979,70709.0,70708.0,1.38895093]
[1717595836256,0.00186979,70709.0,70708.0,1.5723368]
[1717595836456,0.00186979,70709.0,70708.0,1.5953368]
[1717595836916,0.00186979,70709.0,70708.0,2.0781898]
[1717595837317,7.9e-07,70709.0,70708.0,2.0781898]
[1717595837736,0.46834,70734.0,70733.0,0.141376]
[1717595837737,0.48495413,70734.0,70733.0,0.141376]
[1717595837940,0.48495413,70734.0,70727.0,0.282775]
[1717595837941,0.03644404,70731.0,70727.0,0.282775]
[1717595838156,0.03644404,70728.0,70727.0,0.424163]
[1717595838296,0.03644404,70728.0,70727.0,0.141388]
[1717595838481,0.04644404,70728.0,70727.0,0.141388]
[1717595838679,0.13174926,70728.0,70727.0,0.141388]
[1717595838876,0.01,70721.0,70720.0,0.1]
[1717595839077,0.03644404,70721.0,70720.0,0.241402]
[1717595839283,0.05343678,70721.0,70720.0,0.141402]
[1717595839494,0.04343678,70721.0,70720.0,0.141402]
[1717595839961,0.00699274,70721.0,70720.0,0.424207]
[1717595840511,0.03644404,70730.0,70729.0,0.141383]
[1717595840900,0.03644404,70730.0,70729.0,0.141343]
[1717595840901,0.04342845,70730.0,70729.0,0.141343]
[1717595841889,0.00698441,70730.0,70729.0,0.141343]
[1717595842215,0.03644404,70732.0,70731.0,0.14138]
[1717595842514,0.03644404,70735.0,70734.0,0.141374]
[1717595842723,0.01661413,70737.0,70735.0,0.14137]
[1717595842930,0.69416824,70744.0,70738.0,0.141366]
[1717595842931,0.01661413,70742.0,70738.0,0.141366]
[1717595843134,0.01661413,70746.0,70738.0,0.141366]
[1717595843350,0.01661413,70748.0,70738.0,0.141366]
[1717595843554,0.03644404,70747.0,70738.0,0.220566]
[1717595843755,0.03644404,70742.0,70738.0,0.503299]
[1717595843955,0.002,70749.0,70738.0,0.503299]
[1717595843956,0.01661413,70744.0,70738.0,0.503299]
[1717595844159,0.03644404,70744.0,70738.0,0.503299]
[1717595844382,0.01661413,70741.0,70738.0,0.503299]
[1717595844787,0.03644404,70741.0,70738.0,0.503299]
[1717595845002,0.02061413,70739.0,70738.0,0.424099]
[1717595845205,0.12114404,70739.0,70738.0,0.141366]
[1717595845625,0.13114404,70739.0,70738.0,0.141366]
[1717595845827,0.13114404,70739.0,70730.0,0.141382]
[1717595845828,0.03644404,70731.0,70730.0,0.141382]
[1717595846142,0.03644404,70720.0,70719.0,0.424211]
[1717595846354,0.01661413,70724.0,70719.0,0.282807]
[1717595846490,0.03644404,70724.0,70723.0,0.141396]
[1717595846676,0.01661413,70730.0,70719.0,0.282807]
[1717595847114,0.01661413,70724.0,70720.0,0.0802]
[1717595847537,0.01661413,70723.0,70721.0,0.282801]
[1717595847970,0.03644404,70722.0,70721.0,0.424201]
[1717595848192,0.03644404,70722.0,70720.0,0.0802]
[1717595848193,0.01661413,70729.0,70728.0,0.141386]
[1717595848410,0.25124,70739.0,70722.0,0.282796]
[1717595848411,0.03644404,70731.0,70730.0,0.141382]
[1717595848865,0.04348814,70731.0,70730.0,0.141382]
[1717595849072,0.04348814,70731.0,70730.0,0.424147]
[1717595849073,0.0070441,70731.0,70730.0,0.424147]
[1717595849286,0.0070441,70731.0,70730.0,0.806912]
[1717595849500,0.00404,70739.0,70738.0,0.424099]
[1717595849914,0.01108762,70739.0,70738.0,0.424099]
[1717595850097,0.02065413,70739.0,70738.0,0.424099]
[1717595850302,0.04753166,70739.0,70738.0,0.424099]
[1717595851079,0.04753166,70739.0,70738.0,0.141366]
[1717595851451,0.05753166,70739.0,70738.0,0.141366]
[1717595851654,0.05753166,70739.0,70721.0,0.4354]
[1717595851655,0.01661413,70728.0,70725.0,0.1]
[1717595851869,0.23130655,70739.0,70721.0,0.2828]
[1717595851870,0.01661413,70724.0,70723.0,0.141396]
[1717595852066,0.01661413,70724.0,70723.0,0.241396]
[1717595852067,0.03644404,70724.0,70723.0,0.241396]
[1717595852307,0.03644404,70724.0,70723.0,0.141396]
[1717595853512,0.03644404,70725.0,70724.0,0.141394]
[1717595853913,0.03644404,70727.0,70726.0,0.14139]
[1717595854145,0.05986304,70728.0,70727.0,0.141388]
[1717595854359,0.06702143,70728.0,70727.0,0.141388]
[1717595855263,0.03644404,70718.0,70713.0,0.1]
[1717595855414,0.03644404,70718.0,70717.0,0.382814]
[1717595856048,0.05986304,70728.0,70727.0,0.141388]
[1717595856282,0.05986304,70728.0,70717.0,0.382814]
[1717595856283,0.03644404,70725.0,70724.0,0.141393]
[1717595856494,0.01661413,70711.0,70710.0,0.282844]
[1717595856746,0.03644404,70711.0,70710.0,0.524266]
[1717595856956,0.0799,70727.0,70710.0,0.382844]
[1717595856957,0.01661413,70720.0,70710.0,0.382844]
[1717595857128,0.01661413,70722.0,70713.0,0.2099]
[1717595857328,0.1513,70735.0,70713.0,0.2099]
[1717595857329,0.00707019,70721.0,70718.0,0.282811]
[1717595857602,0.01661413,70722.0,70721.0,0.1414]
[1717595857822,0.01661413,70732.0,70727.0,0.141388]
[1717595857973,0.09762991,70733.0,70727.0,0.141388]
[1717595857974,0.01661413,70729.0,70727.0,0.141388]
[1717595858169,0.04709135,70728.0,70727.0,0.141388]
[1717595858383,0.06692126,70728.0,70727.0,0.141388]
[1717595858560,0.04709135,70728.0,70727.0,0.141388]
[1717595858971,0.03047722,70728.0,70727.0,0.141388]
[1717595860239,0.04709135,70728.0,70727.0,0.141388]
[1717595860501,0.03047722,70728.0,70727.0,0.424165]
[1717595860950,0.023419,70728.0,70727.0,0.424165]
[1717595861153,0.023419,70728.0,70727.0,1.038042]
[1717595864325,0.023419,70728.0,70727.0,1.18246093]
[1717595864544,0.023419,70728.0,70727.0,1.6655176]
[1717595867752,0.023419,70728.0,70727.0,1.7655176]
[1717595867966,0.023419,70728.0,70727.0,1.7885176]
[1717595868831,0.00404,70739.0,70738.0,0.706832]
[1717595869053,0.00404,70739.0,70738.0,1.39455093]
[1717595869282,0.00404,70739.0,70738.0,1.016732]
[1717595869689,0.02065413,70739.0,70738.0,1.016732]
[1717595869892,0.04048404,70739.0,70738.0,1.016732]
[1717595870334,0.04048404,70739.0,70738.0,0.806832]
[1717595870759,0.00404,70739.0,70738.0,0.806832]
[1717595871168,0.02065413,70739.0,70738.0,0.806832]
[1717595871389,0.04048404,70739.0,70738.0,0.806832]
[1717595872491,0.04048404,70739.0,70738.0,0.524099]
[1717595872705,0.04048404,70739.0,70738.0,0.141366]
[1717595872910,0.20043294,70739.0,70738.0,0.141366]
[1717595873117,0.21043294,70739.0,70738.0,0.141366]
[1717595873736,0.52355653,70739.0,70738.0,0.141366]
[1717595874449,0.03644404,70729.0,70728.0,0.00336]
[1717595874650,0.03644404,70729.0,70728.0,0.144746]
[1717595874889,0.27534404,70729.0,70728.0,0.144746]
[1717595875017,0.29258942,70729.0,70728.0,0.144746]
[1717595877429,0.04048404,70739.0,70738.0,0.141366]
[1717595878713,0.00404,70739.0,70738.0,0.424099]
[1717595878945,0.02065413,70739.0,70738.0,0.424099]
[1717595879158,0.02065413,70739.0,70738.0,0.141366]
[1717595879363,0.04048404,70739.0,70738.0,0.141366]
[1717595879812,0.05048404,70739.0,70738.0,0.141366]
[1717595880022,0.04048404,70739.0,70738.0,0.141366]
[1717595880237,0.05048404,70739.0,70738.0,0.141366]
[1717595880447,0.05048404,70739.0,70728.0,0.145606]
[1717595880448,0.03644404,70729.0,70728.0,0.145606]
[1717595885398,0.03644404,70729.0,70728.0,0.145606]
[1717595885615,0.03644404,70729.0,70728.0,0.428379]
[1717595885835,0.03644404,70731.0,70730.0,0.141382]
[1717595887565,0.01661413,70731.0,70730.0,0.424147]
[1717595887704,0.03644404,70733.0,70732.0,0.141378]
[1717595888523,0.51425546,70739.0,70732.0,0.141378]
[1717595888524,0.06281319,70735.0,70734.0,0.424123]
[1717595888739,0.52519319,70739.0,70738.0,0.424099]
[1717595888940,0.43474058,70739.0,70738.0,0.66851793]
[1717595889142,0.43474058,70739.0,70738.0,0.69151793]
[1717595889369,0.43474058,70739.0,70738.0,1.4403698]
[1717595889517,4e-05,70750.0,70748.0,0.424039]
[1717595889731,4e-05,70750.0,70748.0,0.524039]
[1717595890127,4e-05,70750.0,70748.0,0.806732]
[1717595892026,4e-05,70750.0,70748.0,1.016432]
[1717595893190,0.00204,70749.0,70748.0,1.016432]
[1717595895254,0.03848404,70749.0,70748.0,1.016432]
[1717595895505,0.00204,70749.0,70748.0,1.016432]
[1717595895871,0.03848404,70749.0,70748.0,1.016432]
[1717595896253,0.00204,70749.0,70748.0,1.016432]
[1717595898062,0.00204,70749.0,70748.0,1.019792]
[1717595899107,0.00949301,70773.0,70759.0,0.1]
[1717595899319,0.00949301,70773.0,70759.0,1.18374093]
[1717595899525,0.00949301,70773.0,70759.0,1.28374093]
[1717595899877,0.00949301,70773.0,70759.0,1.46638993]
[1717595900499,0.01661413,70771.0,70759.0,1.44338993]
[1717595900717,0.02610714,70770.0,70759.0,1.44338993]
[1717595900964,0.00949301,70770.0,70759.0,1.44338993]
[1717595901176,0.00949301,70770.0,70759.0,1.45289393]
[1717595901607,0.01964013,70769.0,70759.0,1.47004384]
[1717595901860,0.003026,70769.0,70759.0,1.47004384]
[1717595905381,0.01964013,70769.0,70759.0,1.47004384]
[1717595905613,0.003026,70769.0,70759.0,1.47004384]
[1717595905810,0.01661413,70768.0,70759.0,1.47004384]
[1717595906030,0.01661413,70767.0,70759.0,1.47004384]
[1717595906208,0.003026,70769.0,70759.0,1.47004384]
[1717595906611,0.01964013,70769.0,70759.0,1.47004384]
[1717595907563,0.003026,70769.0,70759.0,1.47004384]
[1717595908082,0.01661413,70768.0,70759.0,1.47004384]
[1717595908335,0.01661413,70767.0,70759.0,1.47004384]
[1717595908585,0.003026,70769.0,70759.0,1.47004384]
[1717595909241,0.003026,70769.0,70759.0,1.65342971]
[1717595911076,0.003026,70769.0,70759.0,1.67642971]
[1717595912540,0.003026,70769.0,70759.0,1.49304384]
[1717595913348,0.003026,70769.0,70759.0,1.67642971]
[1717595913952,0.003026,70769.0,70759.0,1.63432971]
[1717595914127,0.003026,70769.0,70764.0,0.18338587]
[1717595914360,0.003026,70769.0,70768.0,0.1676]
[1717595914651,0.003026,70769.0,70768.0,0.5954048]
[1717595915352,0.003026,70769.0,70768.0,1.5845498]
[1717595916527,0.003026,70769.0,70768.0,1.40116393]
[1717595916732,0.003026,70769.0,70768.0,1.6845498]
[1717595917052,0.00949301,70770.0,70769.0,0.989131]
[1717595917264,0.00949301,70770.0,70769.0,1.23354993]
[1717595917537,0.00949301,70770.0,70769.0,1.23350993]
[1717595920425,0.00953301,70770.0,70769.0,1.23350993]
[1717595920632,0.00953301,70770.0,70769.0,1.089091]
[1717595920869,0.04597705,70770.0,70769.0,0.523873]
[1717595921043,0.04597705,70770.0,70769.0,0.691473]
[1717595922079,0.04597705,70770.0,70769.0,0.408864]
[1717595922713,0.04597705,70770.0,70769.0,0.141264]
[1717595922714,0.05597705,70770.0,70769.0,0.141264]
[1717595923035,0.04597705,70770.0,70769.0,0.141264]
[1717595923288,0.05597705,70770.0,70769.0,0.141264]
[1717595923497,0.03644404,70760.0,70759.0,0.16846]
[1717595923701,0.03644404,70760.0,70759.0,0.309784]
[1717595924878,0.01661413,70760.0,70759.0,0.409784]
[1717595925491,0.00953301,70770.0,70759.0,0.26846]
[1717595925492,0.01661413,70763.0,70759.0,0.26846]
[1717595925911,0.03644404,70763.0,70762.0,0.141318]
[1717595926120,0.03644404,70766.0,70765.0,0.141312]
[1717595929629,0.00953301,70770.0,70769.0,0.141304]
[1717595930459,0.00953301,70770.0,70769.0,0.706522]
[1717595931086,0.00953301,70770.0,70769.0,0.423913]
[1717595932101,0.00953301,70770.0,70769.0,0.706522]
[1717595932300,0.00953301,70770.0,70769.0,0.423913]
[1717595932508,0.00953301,70770.0,70769.0,0.706522]
[1717595932686,0.00953301,70770.0,70769.0,0.806522]
[1717595933346,0.00953301,70770.0,70769.0,0.8238628]
[1717595936608,0.00953301,70770.0,70769.0,0.9914628]
[1717595936753,0.02614714,70770.0,70769.0,0.9914628]
[1717595936965,0.04597705,70770.0,70769.0,0.9914628]
[1717595937183,0.04597705,70770.0,70769.0,0.241304]
[1717595937385,0.04597705,70770.0,70769.0,0.141304]
[1717595937386,0.05597705,70770.0,70769.0,0.141304]
[1717595937785,0.04597705,70770.0,70769.0,0.141304]
[1717595938166,0.04597705,70770.0,70769.0,0.423913]
[1717595940170,0.00953301,70770.0,70769.0,0.423913]
[1717595940375,0.02614714,70770.0,70769.0,0.141304]
[1717595940612,0.04597705,70770.0,70769.0,0.141304]
[1717595940828,0.02614714,70770.0,70769.0,0.141304]
[1717595941044,0.04597705,70770.0,70769.0,0.141304]
[1717595941865,0.02614714,70770.0,70769.0,0.141304]
[1717595942115,0.04597705,70770.0,70769.0,0.141304]
[1717595944139,0.05163915,70770.0,70769.0,0.141304]
[1717595944348,0.08783668,70770.0,70769.0,0.467004]
[1717595944583,0.09783668,70770.0,70769.0,0.467004]
[1717595944858,0.08783668,70770.0,70769.0,0.467004]
[1717595945071,0.04597705,70770.0,70769.0,0.467004]
[1717595945324,0.08794197,70770.0,70769.0,0.467004]
[1717595946030,0.09794197,70770.0,70769.0,0.467004]
[1717595947345,0.05597705,70770.0,70769.0,0.467004]
[1717595947514,0.09793944,70770.0,70769.0,0.467004]
[1717595947920,0.09793944,70770.0,70769.0,0.467864]
[1717595947921,0.08793944,70770.0,70769.0,0.467864]
[1717595948127,0.09793944,70770.0,70769.0,0.467864]
[1717595949153,0.05597705,70770.0,70769.0,0.32656]
[1717595949341,0.11892063,70770.0,70769.0,0.32656]
[1717595949744,0.36898484,70770.0,70769.0,0.32656]
[1717595951337,0.4528814,70770.0,70769.0,0.32656]
[1717595953511,0.73860233,70770.0,70769.0,0.32656]
[1717595953700,0.95961174,70770.0,70769.0,0.32656]
[1717595953904,0.85470577,70770.0,70769.0,0.32656]
[1717595954108,0.98059294,70770.0,70769.0,0.32656]
[1717595954310,0.85470577,70770.0,70769.0,0.32656]
[1717595955320,0.78048588,70770.0,70769.0,0.32656]
[1717595955471,0.79448588,70770.0,70769.0,0.32756]
[1717595956900,0.99448588,70770.0,70769.0,0.32756]
[1717595957310,1.09448588,70770.0,70769.0,0.32756]
[1717595957530,1.35131077,70770.0,70769.0,0.32756]
[1717595957744,1.47709088,70770.0,70769.0,0.32756]
[1717595959152,1.35131077,70770.0,70769.0,0.32756]
[1717595959733,1.15131077,70770.0,70769.0,0.32756]
[1717595960377,1.36531077,70770.0,70769.0,0.32856]
[1717595960529,1.16531077,70770.0,70769.0,0.32856]
[1717595962366,1.11886673,70770.0,70769.0,0.32856]
[1717595962581,1.36536502,70770.0,70769.0,0.32856]
[1717595962806,1.16536502,70770.0,70769.0,0.32856]
[1717595963346,1.36536502,70770.0,70769.0,0.32856]
[1717595963826,1.49105273,70770.0,70769.0,0.32856]
[1717595964167,1.36536503,70770.0,70769.0,0.32856]
[1717595964386,1.49105273,70770.0,70769.0,0.32856]
[1717595965398,1.36536503,70770.0,70769.0,0.32856]
[1717595965544,1.80365431,70770.0,70769.0,0.32856]
[1717595968608,1.80365431,70770.0,70769.0,0.30032437]
[1717595968609,1.94877218,70770.0,70769.0,0.30032437]
[1717595968807,2.18625931,70770.0,70769.0,0.30032437]
[1717595969008,2.35385931,70770.0,70769.0,0.30032437]
[1717595969239,2.38151531,70770.0,70769.0,0.30032437]
[1717595969566,2.38151531,70770.0,70760.0,0.00336]
[1717595969567,1.34304604,70761.0,70760.0,0.00336]
[1717595969688,0.18778604,70750.0,70749.0,0.00017014]
[1717595969888,0.64533261,70750.0,70749.0,0.00017014]
[1717595970170,0.84533261,70750.0,70749.0,0.00017014]
[1717595970377,0.64533261,70750.0,70749.0,0.00017014]
[1717595970511,0.84533261,70750.0,70749.0,0.00017014]
[1717595971483,1.12801761,70750.0,70749.0,0.00017014]
[1717595972064,1.13601761,70750.0,70749.0,0.00117014]
[1717595972969,1.14221793,70750.0,70749.0,0.00117014]
[1717595973132,1.59250293,70750.0,70749.0,0.00117014]
[1717595973350,1.69250293,70750.0,70749.0,0.00117014]
[1717595973687,1.69253068,70750.0,70749.0,0.00117014]
[1717595974020,1.86064855,70750.0,70749.0,0.00117014]
[1717595974602,2.06064855,70750.0,70749.0,0.00117014]
[1717595974767,2.05444823,70750.0,70749.0,0.00117014]
[1717595974972,0.18782204,70732.0,70728.0,0.00086]
[1717595975185,0.33224097,70732.0,70728.0,0.00086]
[1717595975383,0.19086297,70732.0,70728.0,0.00086]
[1717595977001,0.18086297,70732.0,70728.0,0.00086]
[1717595977616,0.19086297,70732.0,70728.0,0.00086]
[1717595979396,0.33224097,70732.0,70728.0,0.00086]
[1717595979815,0.19086297,70732.0,70728.0,0.00086]
[1717595981205,0.18086297,70732.0,70728.0,0.00086]
[1717595981423,0.19086297,70732.0,70728.0,0.00086]
[1717595981607,0.18086297,70732.0,70728.0,0.00086]
[1717595981808,0.03644404,70732.0,70728.0,0.00086]
[1717595982674,0.04144404,70732.0,70728.0,0.00086]
[1717595984100,0.04144404,70732.0,70731.0,0.00286]
[1717595984778,0.04644404,70732.0,70731.0,0.00286]
[1717595985964,0.20086297,70732.0,70731.0,0.00286]
[1717595992455,0.40086297,70732.0,70731.0,0.00286]
[1717595992856,0.82499797,70732.0,70731.0,0.00286]
[1717595993286,0.88762758,70732.0,70731.0,0.00286]
[1717595993491,0.18782804,70729.0,70728.0,0.00086]
[1717595993692,0.53224697,70729.0,70728.0,0.00086]
[1717595993891,0.61501597,70729.0,70728.0,0.00086]
[1717595994105,0.81501597,70729.0,70728.0,0.00086]
[1717595994300,0.53224697,70729.0,70728.0,0.00086]
[1717595994512,0.59489037,70729.0,70728.0,0.00086]
[1717595994865,0.39489037,70729.0,70728.0,0.00086]
[1717595995896,0.40489037,70729.0,70728.0,0.00086]
[1717595996102,0.34224697,70729.0,70728.0,0.00086]
[1717595996552,0.40491256,70729.0,70728.0,0.00086]
[1717595997476,0.34224697,70729.0,70728.0,0.00086]
[1717595997686,0.41491734,70729.0,70728.0,0.00086]
[1717595997904,0.0992845,70729.0,70728.0,0.00086]
[1717595998082,0.05644404,70729.0,70728.0,0.00086]
[1717595998909,0.03661413,70729.0,70728.0,0.00086]
[1717595999112,0.05644404,70729.0,70728.0,0.00086]
[1717596000056,0.02,70729.0,70728.0,0.00086]
[1717596000247,0.02,70729.0,70726.0,0.1]
[1717596000374,0.02,70729.0,69919.0,2.3419]
[1717596000587,0.37788204,70702.0,70689.0,0.016582]
[1717596000791,0.1,70677.0,70676.0,0.02532108]
[1717596001004,0.1,70677.0,70657.0,0.150158]
[1717596001005,0.1,70672.0,70671.0,0.01855824]
[1717596001204,0.2,70662.0,70657.0,0.00863]
[1717596001413,0.12,70661.0,70657.0,0.00863]
[1717596001616,0.28797004,70658.0,70657.0,0.00863]
[1717596001827,0.32,70652.0,70650.0,0.0273389]
[1717596002039,0.69504404,70651.0,70650.0,0.002]
[1717596002235,0.84644404,70649.0,70631.0,0.002]
[1717596002447,0.63644404,70642.0,70631.0,0.002]
[1717596002648,1.03053919,70642.0,70631.0,0.002]
[1717596002865,0.59983277,70642.0,70631.0,0.002]
[1717596003066,0.27338873,70642.0,70631.0,0.002]
[1717596003484,0.1,70642.0,70631.0,0.002]
[1717596003690,0.2,70642.0,70631.0,0.002]
[1717596003894,0.2,70642.0,70632.0,0.09235561]
[1717596003895,0.23644404,70642.0,70632.0,0.09235561]
[1717596004097,0.24644404,70642.0,70632.0,0.09235561]
[1717596004306,0.39086297,70642.0,70632.0,0.09235561]
[1717596004513,0.45425775,70642.0,70632.0,0.09235561]
[1717596004731,0.30983882,70642.0,70632.0,0.09235561]
[1717596004943,0.31983882,70642.0,70632.0,0.09235561]
[1717596005146,0.46425775,70642.0,70631.0,0.002]
[1717596005532,1.45258521,70642.0,70631.0,0.002]
[1717596005742,1.03644404,70632.0,70631.0,0.002]
[1717596005944,0.65425775,70632.0,70631.0,0.002]
[1717596006155,0.49983882,70632.0,70631.0,0.002]
[1717596006373,0.07339478,70632.0,70631.0,0.002]
[1717596006591,0.30983882,70632.0,70631.0,0.002]
[1717596006789,0.21661413,70632.0,70631.0,0.002]
[1717596007027,0.29002194,70632.0,70631.0,0.002]
[1717596007197,0.23644404,70632.0,70631.0,0.002]
[1717596007442,0.39086297,70632.0,70631.0,0.002]
[1717596007670,0.38086297,70632.0,70631.0,0.002]
[1717596007856,0.23644404,70632.0,70631.0,0.002]
[1717596008064,0.21661413,70632.0,70631.0,0.002]
[1717596008267,0.23644404,70632.0,70631.0,0.002]
[1717596008476,0.38086297,70632.0,70631.0,0.002]
[1717596009113,0.23644404,70632.0,70631.0,0.002]
[1717596009324,0.1,70632.0,70631.0,0.002]
[1717596009741,0.103,70642.0,70631.0,0.002]
[1717596009973,0.003,70642.0,70641.0,0.14156]
[1717596010191,0.1,70655.0,70641.0,0.14156]
[1717596010192,0.1,70670.0,70646.0,0.18338587]
[1717596010429,0.104,70679.0,70641.0,0.52753693]
[1717596010430,0.43336945,70669.0,70658.0,0.18338587]
[1717596010629,0.43336945,70669.0,70668.0,0.141506]
[1717596010847,0.43336945,70669.0,70643.0,0.18338587]
[1717596010848,0.1,70660.0,70632.0,0.6345]
[1717596011094,0.1,70644.0,70631.0,0.01894518]
[1717596011300,0.1,70642.0,70632.0,0.1]
[1717596011501,0.1,70642.0,70633.0,0.1]
[1717596012161,0.1,70654.0,70650.0,0.141542]
[1717596012383,0.1,70654.0,70633.0,0.1]
[1717596012384,0.1,70643.0,70642.0,0.141557]
[1717596012602,0.1,70654.0,70633.0,0.1]
[1717596012603,0.1,70640.0,70637.0,0.141567]
[1717596012805,0.1,70645.0,70633.0,0.1]
[1717596012806,0.1,70645.0,70640.0,0.141562]
[1717596013034,0.01982991,70655.0,70640.0,0.141562]
[1717596013035,0.1,70651.0,70640.0,0.14441893]
[1717596013250,0.1,70648.0,70646.0,0.14155]